[Event "*** Titled Tuesday 3|2 Blitz"]
[Site "Chess.com"]
[Date "2015.11.03"]
[Round "1"]
[White "Krutoy123"]
[Black "Dlugy"]
[Result "1/2-1/2"]
[WhiteElo "2259"]
[BlackElo "2560"]
[TimeControl "180+2"]
[EndTime "11:10:11 PST"]
[Termination "Game drawn - insufficient material"]

1. e4 {[%clk 0:02:52.6]} 1... c5 {[%clk 0:03:00.5]} 2. Nf3 {[%clk 0:02:52.8]}
2... d6 {[%clk 0:03:02]} 3. d4 {[%clk 0:02:53.2]} 3... cxd4 {[%clk 0:03:03.5]}
4. Nxd4 {[%clk 0:02:55.1]} 4... Nf6 {[%clk 0:03:05.1]} 5. f3 {[%clk 0:02:56.3]}
5... e5 {[%clk 0:03:03.9]} 6. Nb3 {[%clk 0:02:56.3]} 6... h6 {[%clk 0:03:02.3]}
7. c4 {[%clk 0:02:57.2]} 7... Nc6 {[%clk 0:02:59.1]} 8. Be3 {[%clk 0:02:58]}
8... a5 {[%clk 0:02:59.7]} 9. Nc3 {[%clk 0:02:56.4]} 9... a4 {[%clk 0:03:00.1]}
10. Nd2 {[%clk 0:02:57.4]} 10... Be7 {[%clk 0:02:57.7]} 11. Be2 {[%clk
0:02:54.4]} 11... a3 {[%clk 0:02:58.4]} 12. b3 {[%clk 0:02:55.1]} 12... Qa5
{[%clk 0:02:57.2]} 13. Rc1 {[%clk 0:02:54.8]} 13... Nb4 {[%clk 0:02:52.1]} 14.
O-O {[%clk 0:02:55.1]} 14... O-O {[%clk 0:02:52.4]} 15. Ndb1 {[%clk 0:02:51.3]}
15... Be6 {[%clk 0:02:48]} 16. Qd2 {[%clk 0:02:51.4]} 16... Nd7 {[%clk
0:02:46.9]} 17. Nb5 {[%clk 0:02:48.7]} 17... Nc5 {[%clk 0:02:38.9]} 18. N1xa3
{[%clk 0:02:36.6]} 18... f5 {[%clk 0:02:27.4]} 19. exf5 {[%clk 0:02:25.7]} 19...
Bxf5 {[%clk 0:02:28]} 20. Rfd1 {[%clk 0:02:05.3]} 20... Rfd8 {[%clk 0:02:26.8]}
21. Kh1 {[%clk 0:02:01.8]} 21... Nbd3 {[%clk 0:02:15.2]} 22. Qxa5 {[%clk
0:01:55.2]} 22... Rxa5 {[%clk 0:02:15.5]} 23. Rc3 {[%clk 0:01:54.7]} 23... Nb4
{[%clk 0:02:00]} 24. Bxc5 {[%clk 0:01:54]} 24... dxc5 {[%clk 0:02:00.6]} 25.
Rxd8+ {[%clk 0:01:55.9]} 25... Bxd8 {[%clk 0:02:01.4]} 26. Re3 {[%clk 0:01:47]}
26... Bf6 {[%clk 0:01:50.6]} 27. g4 {[%clk 0:01:47.6]} 27... Bd7 {[%clk
0:01:50.7]} 28. Nb1 {[%clk 0:01:41.1]} 28... Bxb5 {[%clk 0:01:46.5]} 29. cxb5
{[%clk 0:01:39.6]} 29... Rxa2 {[%clk 0:01:48.4]} 30. Nc3 {[%clk 0:01:38.9]}
30... Ra1+ {[%clk 0:01:40.2]} 31. Kg2 {[%clk 0:01:38.4]} 31... Nc2 {[%clk
0:01:42.1]} 32. Bc4+ {[%clk 0:01:37.8]} 32... Kf8 {[%clk 0:01:42.6]} 33. Re2
{[%clk 0:01:35.5]} 33... Nd4 {[%clk 0:01:38.8]} 34. Ra2 {[%clk 0:01:36.5]} 34...
Rxa2+ {[%clk 0:01:12.8]} 35. Nxa2 {[%clk 0:01:38.4]} 35... Ke7 {[%clk 0:01:07]}
36. Nc3 {[%clk 0:01:38.6]} 36... Kd6 {[%clk 0:01:07.6]} 37. Ne4+ {[%clk
0:01:37.5]} 37... Kc7 {[%clk 0:01:07.8]} 38. Nxc5 {[%clk 0:01:38.8]} 38... Kb6
{[%clk 0:01:07.8]} 39. Ne4 {[%clk 0:01:38.1]} 39... Nxb5 {[%clk 0:01:06.9]} 40.
Kg3 {[%clk 0:01:13.1]} 40... Be7 {[%clk 0:01:07.1]} 41. h4 {[%clk 0:01:12.2]}
41... Nd4 {[%clk 0:01:06.6]} 42. g5 {[%clk 0:01:12.4]} 42... hxg5 {[%clk
0:01:01.9]} 43. hxg5 {[%clk 0:01:14.3]} 43... Ka5 {[%clk 0:01:03.3]} 44. Kg4
{[%clk 0:01:12.9]} 44... Kb4 {[%clk 0:01:01.4]} 45. Bd5 {[%clk 0:01:11]} 45...
b5 {[%clk 0:01:01.3]} 46. Kh5 {[%clk 0:01:04.8]} 46... Nxb3 {[%clk 0:00:59.8]}
47. Kg6 {[%clk 0:01:04.7]} 47... Nd4 {[%clk 0:00:58.2]} 48. Kf7 {[%clk
0:00:59.4]} 48... Bd8 {[%clk 0:00:48.8]} 49. Ke8 {[%clk 0:00:48.5]} 49... Bb6
{[%clk 0:00:39.2]} 50. Kf7 {[%clk 0:00:38.8]} 50... Nxf3 {[%clk 0:00:39.4]} 51.
g6 {[%clk 0:00:39.9]} 51... Nh4 {[%clk 0:00:36.9]} 52. Kxg7 {[%clk 0:00:41.1]}
52... Ka3 {[%clk 0:00:34.6]} 53. Kf6 {[%clk 0:00:40.1]} 53... Nxg6 {[%clk
0:00:35.1]} 54. Kxg6 {[%clk 0:00:42]} 54... b4 {[%clk 0:00:35.8]} 55. Nd2 {[%clk
0:00:42.5]} 55... Bd4 {[%clk 0:00:36.2]} 56. Kf5 {[%clk 0:00:42.5]} 56... Kb2
{[%clk 0:00:37]} 57. Ke4 {[%clk 0:00:42.5]} 57... Kc2 {[%clk 0:00:37.8]} 58. Nb3
{[%clk 0:00:41]} 58... Kc3 {[%clk 0:00:38.5]} 59. Kf3 {[%clk 0:00:40.6]} 59...
Kc2 {[%clk 0:00:37.3]} 60. Ke2 {[%clk 0:00:39.1]} 60... Bc3 {[%clk 0:00:34.9]}
61. Nc5 {[%clk 0:00:36.6]} 61... Bd4 {[%clk 0:00:35.3]} 62. Nd3 {[%clk
0:00:35.9]} 62... b3 {[%clk 0:00:32.4]} 63. Bxb3+ {[%clk 0:00:34.7]} 63... Kxb3
{[%clk 0:00:33]} 64. Nxe5 {[%clk 0:00:36.1]} 64... Bxe5 {[%clk 0:00:33.8]}
1/2-1/2

[Event "*** Titled Tuesday 3|2 Blitz"]
[Site "Chess.com"]
[Date "2015.11.03"]
[Round "1"]
[White "NMJeevanK"]
[Black "GeorgMeier"]
[Result "0-1"]
[WhiteElo "2250"]
[BlackElo "2609"]
[TimeControl "180+2"]
[EndTime "11:10:38 PST"]
[Termination "GeorgMeier won by resignation"]

1. e4 {[%clk 0:03:01.1]} 1... e6 {[%clk 0:03:01.1]} 2. d4 {[%clk 0:03:02]} 2...
d5 {[%clk 0:03:01.6]} 3. e5 {[%clk 0:03:03.5]} 3... c5 {[%clk 0:03:02.5]} 4. c3
{[%clk 0:03:05.4]} 4... Nc6 {[%clk 0:03:03.8]} 5. Nf3 {[%clk 0:03:06.8]} 5...
Qb6 {[%clk 0:03:05]} 6. Bd3 {[%clk 0:03:07.5]} 6... cxd4 {[%clk 0:03:04.4]} 7.
cxd4 {[%clk 0:03:09.4]} 7... Bd7 {[%clk 0:03:06]} 8. Nc3 {[%clk 0:03:10]} 8...
Nxd4 {[%clk 0:03:07]} 9. Nxd4 {[%clk 0:03:11.9]} 9... Qxd4 {[%clk 0:03:08.9]}
10. O-O {[%clk 0:03:13.8]} 10... a6 {[%clk 0:03:09.9]} 11. Qe2 {[%clk
0:03:12.9]} 11... Ne7 {[%clk 0:03:08.6]} 12. a3 {[%clk 0:03:10.7]} 12... Nc6
{[%clk 0:02:53.4]} 13. Re1 {[%clk 0:03:08.3]} 13... Be7 {[%clk 0:02:17.2]} 14.
Kh1 {[%clk 0:03:02.1]} 14... g6 {[%clk 0:01:38.7]} 15. f4 {[%clk 0:03:00.4]}
15... Qa7 {[%clk 0:01:32.6]} 16. Be3 {[%clk 0:02:57.4]} 16... Qb8 {[%clk
0:01:27.2]} 17. Bf2 {[%clk 0:02:50.2]} 17... O-O {[%clk 0:01:26.2]} 18. Na4
{[%clk 0:02:49]} 18... Qe8 {[%clk 0:01:25.7]} 19. Nb6 {[%clk 0:02:48.2]} 19...
Rd8 {[%clk 0:01:26.7]} 20. b4 {[%clk 0:02:49.1]} 20... f6 {[%clk 0:01:27.1]} 21.
Rac1 {[%clk 0:02:38.1]} 21... fxe5 {[%clk 0:01:27.8]} 22. fxe5 {[%clk
0:02:39.2]} 22... Qf7 {[%clk 0:01:24.4]} 23. Rf1 {[%clk 0:02:33.5]} 23... Qg7
{[%clk 0:01:23.4]} 24. Bg3 {[%clk 0:02:26]} 24... Bg5 {[%clk 0:01:24.2]} 25.
Rce1 {[%clk 0:02:18.6]} 25... Rxf1+ {[%clk 0:01:12.3]} 26. Rxf1 {[%clk
0:02:15.9]} 26... Rf8 {[%clk 0:01:08.3]} 27. h4 {[%clk 0:02:03.9]} 27... Rxf1+
{[%clk 0:01:05.6]} 28. Qxf1 {[%clk 0:02:04]} 28... Bd8 {[%clk 0:01:07.2]} 29.
Qf2 {[%clk 0:01:55]} 29... Bc7 {[%clk 0:00:55.3]} 30. Nxd7 {[%clk 0:01:29.9]}
30... Qxd7 {[%clk 0:00:55.9]} 31. b5 {[%clk 0:01:31.3]} 31... axb5 {[%clk
0:00:54.1]} 32. Bxb5 {[%clk 0:01:32.2]} 32... Qf7 {[%clk 0:00:52.6]} 33. Qe1
{[%clk 0:01:24.5]} 33... Nd4 {[%clk 0:00:52]} 34. Bd3 {[%clk 0:01:21.7]} 34...
Nf5 {[%clk 0:00:44.9]} 35. Bxf5 {[%clk 0:01:18.5]} 35... gxf5 {[%clk 0:00:41.1]}
36. Bf4 {[%clk 0:01:18]} 36... Bd8 {[%clk 0:00:39.4]} 37. g3 {[%clk 0:01:18]}
37... Qd7 {[%clk 0:00:36.5]} 38. Qb4 {[%clk 0:01:13.8]} 38... Kf7 {[%clk
0:00:31.5]} 39. a4 {[%clk 0:01:11.3]} 39... d4 {[%clk 0:00:31.1]} 40. Kg2 {[%clk
0:01:08.4]} 40... Be7 {[%clk 0:00:31.2]} 41. Qb3 {[%clk 0:01:02.2]} 41... d3
{[%clk 0:00:31.4]} 42. Bd2 {[%clk 0:00:46.6]} 42... Qc6+ {[%clk 0:00:31.7]} 43.
Kf2 {[%clk 0:00:40.7]} 43... Bc5+ {[%clk 0:00:30.7]} 44. Be3 {[%clk 0:00:28.9]}
44... Be7 {[%clk 0:00:27.3]} 45. Qxd3 {[%clk 0:00:28.4]} 45... Qxa4 {[%clk
0:00:28.2]} 46. Qc3 {[%clk 0:00:24.9]} 46... Qc6 {[%clk 0:00:26.5]} 47. Qa5
{[%clk 0:00:25.2]} 47... Qc2+ {[%clk 0:00:24.7]} 48. Kf3 {[%clk 0:00:25.7]}
48... Qc6+ {[%clk 0:00:25.6]} 49. Kf2 {[%clk 0:00:26]} 49... h5 {[%clk
0:00:25.2]} 50. Qa8 {[%clk 0:00:25.4]} 50... Qc2+ {[%clk 0:00:23.9]} 51. Kf1
{[%clk 0:00:23.3]} 51... Qd3+ {[%clk 0:00:22.4]} 52. Kf2 {[%clk 0:00:24]} 52...
Qc2+ {[%clk 0:00:23.5]} 53. Kf1 {[%clk 0:00:25.3]} 53... Qb1+ {[%clk 0:00:24.9]}
54. Kf2 {[%clk 0:00:26.6]} 54... Qb2+ {[%clk 0:00:26.4]} 55. Kf3 {[%clk
0:00:25.1]} 55... Qxe5 {[%clk 0:00:24.6]} 56. Qxb7 {[%clk 0:00:24.1]} 56... Ke8
{[%clk 0:00:20.7]} 57. Qc8+ {[%clk 0:00:23.8]} 57... Kf7 {[%clk 0:00:19.9]} 58.
Qb7 {[%clk 0:00:24]} 58... Qc3 {[%clk 0:00:19.4]} 59. Qd7 {[%clk 0:00:21.9]}
59... Qb3 {[%clk 0:00:18]} 60. Ke2 {[%clk 0:00:21.6]} 60... Qc4+ {[%clk
0:00:18.5]} 61. Kf3 {[%clk 0:00:22.4]} 61... Qb3 {[%clk 0:00:18]} 62. Ke2 {[%clk
0:00:23.4]} 62... Qd5 {[%clk 0:00:19]} 63. Qa7 {[%clk 0:00:21]} 63... Qg2+
{[%clk 0:00:19.8]} 64. Bf2 {[%clk 0:00:22.2]} 64... Qe4+ {[%clk 0:00:20.6]} 65.
Qe3 {[%clk 0:00:23.2]} 65... Qxe3+ {[%clk 0:00:21.6]} 66. Kxe3 {[%clk
0:00:24.5]} 66... Bc5+ {[%clk 0:00:22.1]} 67. Kf3 {[%clk 0:00:24.9]} 67... Bxf2
{[%clk 0:00:23.6]} 68. Kxf2 {[%clk 0:00:26.8]} 68... e5 {[%clk 0:00:25.5]} 69.
Kf3 {[%clk 0:00:27.6]} 69... Ke6 {[%clk 0:00:27]} 70. Ke3 {[%clk 0:00:28]} 70...
Kd5 {[%clk 0:00:28.5]} 71. Kd3 {[%clk 0:00:29.3]} 71... Kc5 {[%clk 0:00:29.7]}
72. Ke3 {[%clk 0:00:31.2]} 72... Kc4 {[%clk 0:00:30.9]} 0-1

[Event "*** Titled Tuesday 3|2 Blitz"]
[Site "Chess.com"]
[Date "2015.11.03"]
[Round "1"]
[White "DeviatkinAndrey"]
[Black "armago"]
[Result "1/2-1/2"]
[WhiteElo "2515"]
[BlackElo "2232"]
[TimeControl "180+2"]
[EndTime "11:11:12 PST"]
[Termination "Game drawn - insufficient material"]

1. d4 {[%clk 0:02:56.9]} 1... Nf6 {[%clk 0:03:00.1]} 2. Nf3 {[%clk 0:02:56]}
2... g6 {[%clk 0:03:01.2]} 3. Bg5 {[%clk 0:02:56]} 3... Bg7 {[%clk 0:03:00.9]}
4. e3 {[%clk 0:02:56.3]} 4... O-O {[%clk 0:02:58.1]} 5. Nbd2 {[%clk 0:02:54.3]}
5... d6 {[%clk 0:02:57.7]} 6. c3 {[%clk 0:02:50.9]} 6... h6 {[%clk 0:02:55.5]}
7. Bh4 {[%clk 0:02:48.9]} 7... g5 {[%clk 0:02:50.3]} 8. Bg3 {[%clk 0:02:49.6]}
8... Nh5 {[%clk 0:02:50.7]} 9. Bd3 {[%clk 0:02:27.8]} 9... Nxg3 {[%clk
0:02:51.2]} 10. hxg3 {[%clk 0:02:28.3]} 10... e6 {[%clk 0:02:47.7]} 11. Qe2
{[%clk 0:02:13.7]} 11... c5 {[%clk 0:02:37.9]} 12. O-O {[%clk 0:01:57.5]} 12...
Nc6 {[%clk 0:02:33.7]} 13. Rfd1 {[%clk 0:01:42]} 13... Qe7 {[%clk 0:02:13.9]}
14. dxc5 {[%clk 0:01:28.4]} 14... dxc5 {[%clk 0:02:14.1]} 15. Nc4 {[%clk
0:01:29.7]} 15... Rd8 {[%clk 0:01:40.9]} 16. Be4 {[%clk 0:01:23.1]} 16... Bd7
{[%clk 0:01:35.7]} 17. g4 {[%clk 0:01:07.7]} 17... f5 {[%clk 0:01:28.3]} 18.
gxf5 {[%clk 0:00:54.1]} 18... exf5 {[%clk 0:01:29]} 19. Bd5+ {[%clk 0:00:55.7]}
19... Be6 {[%clk 0:01:26.7]} 20. Bxe6+ {[%clk 0:00:47.5]} 20... Qxe6 {[%clk
0:01:27.2]} 21. a4 {[%clk 0:00:48.6]} 21... f4 {[%clk 0:01:23.8]} 22. e4 {[%clk
0:00:41.6]} 22... Re8 {[%clk 0:01:16]} 23. Re1 {[%clk 0:00:30.6]} 23... Rad8
{[%clk 0:01:14.3]} 24. Nh2 {[%clk 0:00:23.7]} 24... Qg6 {[%clk 0:01:08.1]} 25.
f3 {[%clk 0:00:24.5]} 25... h5 {[%clk 0:01:08]} 26. Rad1 {[%clk 0:00:24.8]}
26... Rxd1 {[%clk 0:01:07.5]} 27. Rxd1 {[%clk 0:00:25.6]} 27... Ne5 {[%clk
0:01:07.4]} 28. Rd6 {[%clk 0:00:24.2]} 28... Re6 {[%clk 0:01:01.5]} 29. Nxe5
{[%clk 0:00:24.1]} 29... Bxe5 {[%clk 0:00:59.3]} 30. Rd7 {[%clk 0:00:24.1]}
30... Qe8 {[%clk 0:00:47.5]} 31. Rxb7 {[%clk 0:00:20]} 31... Qc6 {[%clk
0:00:47.8]} 32. Qc4 {[%clk 0:00:18.4]} 32... Kh8 {[%clk 0:00:45.7]} 33. Rf7
{[%clk 0:00:17]} 33... Qd6 {[%clk 0:00:42.9]} 34. Rf5 {[%clk 0:00:15.7]} 34...
Rg6 {[%clk 0:00:39.2]} 35. Qd5 {[%clk 0:00:15.8]} 35... Qxd5 {[%clk 0:00:39.6]}
36. exd5 {[%clk 0:00:17.3]} 36... Bd6 {[%clk 0:00:40.7]} 37. Kf2 {[%clk
0:00:15.9]} 37... c4 {[%clk 0:00:41]} 38. Nf1 {[%clk 0:00:16.2]} 38... Kg7
{[%clk 0:00:40.8]} 39. Nd2 {[%clk 0:00:17.2]} 39... g4 {[%clk 0:00:40.2]} 40.
Ne4 {[%clk 0:00:18.1]} 40... Bc7 {[%clk 0:00:38.2]} 41. Rxh5 {[%clk 0:00:18.7]}
41... g3+ {[%clk 0:00:38.2]} 42. Ke2 {[%clk 0:00:19.4]} 42... Rb6 {[%clk
0:00:38.3]} 43. d6 {[%clk 0:00:18.6]} 43... Rxb2+ {[%clk 0:00:38.7]} 44. Nd2
{[%clk 0:00:16.6]} 44... Bxd6 {[%clk 0:00:36.6]} 45. Rd5 {[%clk 0:00:16.9]}
45... Be7 {[%clk 0:00:36.6]} 46. Rd4 {[%clk 0:00:17.7]} 46... Bf6 {[%clk
0:00:35]} 47. Rxc4 {[%clk 0:00:18.3]} 47... Ra2 {[%clk 0:00:35.5]} 48. Rxf4
{[%clk 0:00:19.1]} 48... Bxc3 {[%clk 0:00:36.2]} 49. Rg4+ {[%clk 0:00:17.5]}
49... Kf7 {[%clk 0:00:38.1]} 50. Kd3 {[%clk 0:00:18.9]} 50... Bxd2 {[%clk
0:00:38.1]} 51. Rxg3 {[%clk 0:00:20.5]} 51... Bb4 {[%clk 0:00:38.8]} 52. Rg4
{[%clk 0:00:21.7]} 52... a5 {[%clk 0:00:40.2]} 53. f4 {[%clk 0:00:21.5]} 53...
Rxa4 {[%clk 0:00:42.1]} 54. Rg5 {[%clk 0:00:22.5]} 54... Ra3+ {[%clk 0:00:42.7]}
55. Kc4 {[%clk 0:00:22.9]} 55... Ra2 {[%clk 0:00:43.7]} 56. g4 {[%clk 0:00:24]}
56... Rc2+ {[%clk 0:00:44.8]} 57. Kb5 {[%clk 0:00:23.9]} 57... Rf2 {[%clk
0:00:45.3]} 58. Rf5+ {[%clk 0:00:25.3]} 58... Ke6 {[%clk 0:00:45.8]} 59. Re5+
{[%clk 0:00:26.2]} 59... Kd6 {[%clk 0:00:46.4]} 60. Re4 {[%clk 0:00:27.6]} 60...
Bd2 {[%clk 0:00:45]} 61. f5 {[%clk 0:00:28.5]} 61... Kd5 {[%clk 0:00:45.5]} 62.
Re6 {[%clk 0:00:27.6]} 62... Bb4 {[%clk 0:00:44.8]} 63. Re8 {[%clk 0:00:26.9]}
63... Rf4 {[%clk 0:00:45.8]} 64. Rg8 {[%clk 0:00:28]} 64... Ke5 {[%clk
0:00:47.1]} 65. Re8+ {[%clk 0:00:27.6]} 65... Kf6 {[%clk 0:00:47.7]} 66. Re6+
{[%clk 0:00:28.4]} 66... Kf7 {[%clk 0:00:49.1]} 67. Rg6 {[%clk 0:00:27.3]} 67...
Bd2 {[%clk 0:00:48.4]} 68. Rd6 {[%clk 0:00:27.8]} 68... Bc1 {[%clk 0:00:46.1]}
69. Kxa5 {[%clk 0:00:26.8]} 69... Rxg4 {[%clk 0:00:44.4]} 70. Rg6 {[%clk
0:00:27.6]} 70... Rf4 {[%clk 0:00:43.8]} 71. Rc6 {[%clk 0:00:28.5]} 71... Rxf5+
{[%clk 0:00:43.4]} 72. Kb4 {[%clk 0:00:28.9]} 72... Bf4 {[%clk 0:00:42.4]} 73.
Kc4 {[%clk 0:00:30]} 73... Ke7 {[%clk 0:00:43.1]} 74. Rc5 {[%clk 0:00:30.5]}
74... Rf6 {[%clk 0:00:41.8]} 75. Kd5 {[%clk 0:00:30.6]} 75... Bd6 {[%clk
0:00:42.5]} 76. Rc2 {[%clk 0:00:29.7]} 76... Rf5+ {[%clk 0:00:42.5]} 77. Ke4
{[%clk 0:00:30.8]} 77... Re5+ {[%clk 0:00:43.2]} 78. Kd3 {[%clk 0:00:31.1]}
78... Ke6 {[%clk 0:00:44.2]} 79. Re2 {[%clk 0:00:32.3]} 79... Rxe2 {[%clk
0:00:42.3]} 80. Kxe2 {[%clk 0:00:33.1]} 1/2-1/2

[Event "*** Titled Tuesday 3|2 Blitz"]
[Site "Chess.com"]
[Date "2015.11.03"]
[Round "2"]
[White "cassoulet"]
[Black "ruifeng"]
[Result "0-1"]
[WhiteElo "2229"]
[BlackElo "2179"]
[TimeControl "180+2"]
[EndTime "11:17:22 PST"]
[Termination "ruifeng won by resignation"]

1. e4 {[%clk 0:03:01.9]} 1... e6 {[%clk 0:02:58.8]} 2. d4 {[%clk 0:03:02.2]}
2... d5 {[%clk 0:02:59.8]} 3. Nc3 {[%clk 0:03:03.5]} 3... Nf6 {[%clk 0:02:59.3]}
4. e5 {[%clk 0:03:04.2]} 4... Nfd7 {[%clk 0:03:00.5]} 5. f4 {[%clk 0:03:05.8]}
5... c5 {[%clk 0:03:01.7]} 6. Nf3 {[%clk 0:03:07.4]} 6... Nc6 {[%clk 0:03:03]}
7. Be3 {[%clk 0:03:08.9]} 7... Be7 {[%clk 0:03:00.2]} 8. Qd2 {[%clk 0:03:09.7]}
8... a6 {[%clk 0:03:00.9]} 9. Bd3 {[%clk 0:03:10]} 9... b5 {[%clk 0:02:58.2]}
10. O-O {[%clk 0:03:02.3]} 10... Qb6 {[%clk 0:02:50]} 11. dxc5 {[%clk
0:03:02.7]} 11... Bxc5 {[%clk 0:02:50.9]} 12. Bxc5 {[%clk 0:03:03.2]} 12... Nxc5
{[%clk 0:02:52.1]} 13. Kh1 {[%clk 0:03:04.1]} 13... Nxd3 {[%clk 0:02:52.7]} 14.
cxd3 {[%clk 0:03:04.7]} 14... O-O {[%clk 0:02:46.6]} 15. f5 {[%clk 0:03:01.7]}
15... exf5 {[%clk 0:02:45.2]} 16. Nxd5 {[%clk 0:03:01.6]} 16... Qc5 {[%clk
0:02:45.9]} 17. Nf6+ {[%clk 0:02:53.2]} 17... gxf6 {[%clk 0:02:27.4]} 18. Rac1
{[%clk 0:02:50.5]} 18... Qb4 {[%clk 0:02:19.6]} 19. Qh6 {[%clk 0:02:29.2]} 19...
Nxe5 {[%clk 0:02:13.7]} 20. Qxf6 {[%clk 0:02:21.8]} 20... Ng6 {[%clk 0:02:06.1]}
21. Rc7 {[%clk 0:02:06.2]} 21... Qf4 {[%clk 0:01:55.6]} 22. Rc6 {[%clk
0:01:51.9]} 22... Bb7 {[%clk 0:01:54.1]} 23. Rcc1 {[%clk 0:01:39.4]} 23... Bxf3
{[%clk 0:01:54.1]} 24. gxf3 {[%clk 0:01:41.3]} 24... Rac8 {[%clk 0:01:54.1]} 25.
Rce1 {[%clk 0:01:42]} 25... Rc2 {[%clk 0:01:52.3]} 0-1

[Event "*** Titled Tuesday 3|2 Blitz"]
[Site "Chess.com"]
[Date "2015.11.03"]
[Round "2"]
[White "igorkovalenko"]
[Black "Danirod"]
[Result "1-0"]
[WhiteElo "2515"]
[BlackElo "2421"]
[TimeControl "180+2"]
[EndTime "11:17:41 PST"]
[Termination "igorkovalenko won by resignation"]

1. d4 {[%clk 0:03:01.9]} 1... Nf6 {[%clk 0:03:00.8]} 2. Nf3 {[%clk 0:03:03.8]}
2... e6 {[%clk 0:03:01.9]} 3. e3 {[%clk 0:03:05]} 3... c5 {[%clk 0:03:02.4]} 4.
Bd3 {[%clk 0:03:06.5]} 4... Nc6 {[%clk 0:03:03.5]} 5. O-O {[%clk 0:03:07.2]}
5... d5 {[%clk 0:03:04.8]} 6. b3 {[%clk 0:03:08.3]} 6... Bd6 {[%clk 0:03:02.6]}
7. Bb2 {[%clk 0:03:08]} 7... Qc7 {[%clk 0:03:04.1]} 8. dxc5 {[%clk 0:03:05.9]}
8... Bxc5 {[%clk 0:03:05]} 9. Nbd2 {[%clk 0:03:06.8]} 9... b6 {[%clk 0:02:59.6]}
10. a3 {[%clk 0:03:07.5]} 10... Bb7 {[%clk 0:02:59.7]} 11. b4 {[%clk 0:03:08.8]}
11... Bd6 {[%clk 0:03:01.1]} 12. Rc1 {[%clk 0:03:09.2]} 12... Rd8 {[%clk
0:02:49.2]} 13. Qe2 {[%clk 0:03:09.9]} 13... e5 {[%clk 0:02:21.8]} 14. e4 {[%clk
0:03:08.4]} 14... d4 {[%clk 0:02:21.7]} 15. c3 {[%clk 0:03:06.2]} 15... dxc3
{[%clk 0:02:22.7]} 16. Rxc3 {[%clk 0:03:07]} 16... Qd7 {[%clk 0:02:06.1]} 17.
Bb5 {[%clk 0:03:08.1]} 17... O-O {[%clk 0:02:00.8]} 18. Rfc1 {[%clk 0:03:07.9]}
18... Rc8 {[%clk 0:01:56.3]} 19. Nc4 {[%clk 0:03:05.6]} 19... Bb8 {[%clk
0:01:44.6]} 20. Ncxe5 {[%clk 0:03:01.2]} 20... Bxe5 {[%clk 0:01:29]} 21. Nxe5
{[%clk 0:03:01.5]} 21... Nd4 {[%clk 0:01:30.4]} 22. Nxd7 {[%clk 0:03:01.9]}
22... Nxe2+ {[%clk 0:01:31.5]} 23. Bxe2 {[%clk 0:03:03]} 23... Nxd7 {[%clk
0:01:31.5]} 24. Rc7 {[%clk 0:02:56.7]} 24... Bxe4 {[%clk 0:00:33.8]} 25. Rxd7
{[%clk 0:02:53.3]} 25... Rxc1+ {[%clk 0:00:33.4]} 26. Bxc1 {[%clk 0:02:53.7]}
26... Rc8 {[%clk 0:00:34.7]} 27. Be3 {[%clk 0:02:50.6]} 27... f5 {[%clk
0:00:32.6]} 28. f3 {[%clk 0:02:50.9]} 28... Bc6 {[%clk 0:00:33]} 1-0

[Event "*** Titled Tuesday 3|2 Blitz"]
[Site "Chess.com"]
[Date "2015.11.03"]
[Round "2"]
[White "Blitzstream"]
[Black "BjarkeSahl"]
[Result "0-1"]
[WhiteElo "2396"]
[BlackElo "2160"]
[TimeControl "180+2"]
[EndTime "11:17:49 PST"]
[Termination "BjarkeSahl won by resignation"]

1. e4 {[%clk 0:02:52]} 1... c5 {[%clk 0:02:54.1]} 2. Nf3 {[%clk 0:02:52.4]} 2...
Nc6 {[%clk 0:02:55.2]} 3. Bb5 {[%clk 0:02:52.8]} 3... Nf6 {[%clk 0:02:49.3]} 4.
Nc3 {[%clk 0:02:47.8]} 4... Nd4 {[%clk 0:02:49.7]} 5. e5 {[%clk 0:02:40.6]} 5...
Nxb5 {[%clk 0:02:49.9]} 6. Nxb5 {[%clk 0:02:40.2]} 6... a6 {[%clk 0:02:49]} 7.
exf6 {[%clk 0:02:32.1]} 7... axb5 {[%clk 0:02:49]} 8. fxg7 {[%clk 0:02:27.7]}
8... Bxg7 {[%clk 0:02:49.6]} 9. O-O {[%clk 0:02:28.5]} 9... O-O {[%clk
0:02:34.7]} 10. d4 {[%clk 0:02:29.4]} 10... b6 {[%clk 0:02:33.3]} 11. Be3 {[%clk
0:02:26.5]} 11... d6 {[%clk 0:02:31.4]} 12. Qd2 {[%clk 0:02:27.6]} 12... Bb7
{[%clk 0:02:27.6]} 13. Bh6 {[%clk 0:02:24.3]} 13... Kh8 {[%clk 0:02:19.9]} 14.
Bxg7+ {[%clk 0:02:15.6]} 14... Kxg7 {[%clk 0:02:20.3]} 15. Nh4 {[%clk
0:02:13.4]} 15... e6 {[%clk 0:02:15.3]} 16. Qf4 {[%clk 0:01:50.5]} 16... Kh8
{[%clk 0:02:10.1]} 17. Nf3 {[%clk 0:01:35]} 17... Qe7 {[%clk 0:02:00.2]} 18.
Rfe1 {[%clk 0:01:27.4]} 18... Rg8 {[%clk 0:01:58.9]} 19. Re3 {[%clk 0:01:24]}
19... Rg7 {[%clk 0:01:53.9]} 20. g3 {[%clk 0:01:08.3]} 20... Rag8 {[%clk
0:01:53.1]} 21. Qg4 {[%clk 0:01:01.4]} 21... Rxg4 {[%clk 0:01:53.3]} 0-1

[Event "*** Titled Tuesday 3|2 Blitz"]
[Site "Chess.com"]
[Date "2015.11.03"]
[Round "2"]
[White "Frolyanov_D"]
[Black "xdb"]
[Result "1-0"]
[WhiteElo "2299"]
[BlackElo "2102"]
[TimeControl "180+2"]
[EndTime "11:18:14 PST"]
[Termination "Frolyanov_D won by resignation"]

1. d4 {[%clk 0:02:50.7]} 1... Nf6 {[%clk 0:02:59.2]} 2. c4 {[%clk 0:02:50.3]}
2... e6 {[%clk 0:03:00.4]} 3. Nf3 {[%clk 0:02:50.4]} 3... d5 {[%clk 0:03:00]} 4.
Nc3 {[%clk 0:02:50.3]} 4... Be7 {[%clk 0:03:00.1]} 5. Bf4 {[%clk 0:02:50.3]}
5... O-O {[%clk 0:03:00.2]} 6. e3 {[%clk 0:02:50.8]} 6... Nbd7 {[%clk
0:03:01.8]} 7. c5 {[%clk 0:02:48.6]} 7... Nh5 {[%clk 0:02:52.9]} 8. Bd3 {[%clk
0:02:39.8]} 8... c6 {[%clk 0:02:41.4]} 9. O-O {[%clk 0:02:35.9]} 9... Nxf4
{[%clk 0:02:38.8]} 10. exf4 {[%clk 0:02:36.3]} 10... b6 {[%clk 0:02:34.8]} 11.
b4 {[%clk 0:02:36.7]} 11... a5 {[%clk 0:02:34.3]} 12. a3 {[%clk 0:02:37.7]}
12... Ba6 {[%clk 0:01:54]} 13. Bxa6 {[%clk 0:02:35.1]} 13... Rxa6 {[%clk
0:01:54.7]} 14. Re1 {[%clk 0:02:15.7]} 14... b5 {[%clk 0:01:42.4]} 15. Qe2
{[%clk 0:02:04.6]} 15... Qc7 {[%clk 0:01:31.7]} 16. f5 {[%clk 0:02:02.1]} 16...
Bf6 {[%clk 0:01:04.5]} 17. fxe6 {[%clk 0:02:02]} 17... fxe6 {[%clk 0:01:02.2]}
18. Qxe6+ {[%clk 0:02:01.3]} 18... Kh8 {[%clk 0:01:03.9]} 19. Nxb5 {[%clk
0:01:59.8]} 19... Qb8 {[%clk 0:00:38.2]} 20. Nd6 {[%clk 0:01:57.3]} 1-0